bitfinex-derivatives/quotes_SOLF0:USTF0_20250817
["timestamp","ask_amount","ask_price","bid_price","bid_amount"]
[1755436012124,3.94960587,192.13,192.05,2.78]
[1755436012422,1.97,192.13,192.05,2.78]
[1755436012623,1.97,192.19,192.05,2.78]
[1755436012923,1.97,192.17,192.05,2.78]
[1755436013124,3.95015806,192.16,192.05,2.78]
[1755436013421,3.95015806,192.15,192.05,2.78]
[1755436013620,1.97,192.17,192.05,2.78]
[1755436013821,3.94970966,192.16,192.05,2.78]
[1755436014029,3.94970966,192.15,192.05,2.78]
[1755436014319,1.97,192.17,192.05,2.78]
[1755436014516,3.94944178,192.16,192.05,2.78]
[1755436014722,1.97,192.17,192.05,2.78]
[1755436014924,3.94944178,192.16,192.05,2.78]
[1755436015127,1.97,192.17,192.05,2.78]
[1755436015314,5.91900963,192.16,192.05,2.78]
[1755436015514,1.97,192.14,192.06,127.46]
[1755436015718,5.77548179,192.21,192.07,3.05]
[1755436015719,1.97,192.12,192.07,3.05]
[1755436015920,5.77548179,192.21,192.07,3.05]
[1755436015921,1.97,192.2,192.07,3.05]
[1755436016213,5.77548179,192.21,192.07,3.05]
[1755436016214,1.97,192.18,192.07,3.05]
[1755436016420,1.97,192.16,192.07,3.05]
[1755436016724,1.97,192.14,192.07,3.05]
[1755436016926,1.97,192.12,192.07,3.05]
[1755436017113,1.97,192.11,192.07,3.05]
[1755436018326,1.97,192.19,192.07,3.05]
[1755436018626,1.97,192.17,192.05,3.05]
[1755436018924,1.97,192.15,192.05,3.05]
[1755436019127,1.97,192.13,192.05,3.05]
[1755436019424,1.97,192.11,192.05,3.05]
[1755436020531,3.94859256,192.1,192.05,3.05]
[1755436020823,1.97,192.17,192.05,3.05]
[1755436021029,1.97,192.15,192.05,3.05]
[1755436021233,9.7630226,192.14,192.05,3.05]
[1755436021434,1.97,192.12,192.05,3.05]
[1755436021728,3.94859256,192.11,192.05,3.05]
[1755436021932,1.97,192.09,192.05,3.05]
[1755436022128,5.77548179,192.18,192.05,3.05]
[1755436022427,1.97,192.08,192.05,3.05]
[1755436025334,1.97,192.07,192.05,3.05]
[1755436025636,1.97,192.15,192.04,3.05]
[1755436025827,1.97,192.13,192.04,3.05]
[1755436026020,9.76417852,192.12,192.04,3.05]
[1755436026224,1.97,192.1,192.04,3.05]
[1755436026432,1.97,192.07,192.04,3.05]
[1755436029225,7.74548179,192.14,192.05,3.05]
[1755436029426,1.97,192.12,192.05,3.05]
[1755436029624,1.97,192.1,191.99,3.05]
[1755436029829,5.77548179,192.14,191.99,3.05]
[1755436029830,1.97,192.08,191.99,3.05]
[1755436030024,5.9320761,192.07,191.99,3.05]
[1755436030228,3.9620761,192.06,191.99,3.05]
[1755436030936,1.97,192.07,191.99,3.05]
[1755436031635,3.96207732,192.06,191.99,3.05]
[1755436031834,1.97,192.07,191.99,3.05]
[1755436032035,3.96207732,192.06,191.99,3.05]
[1755436032339,1.97,192.07,191.99,3.05]
[1755436033137,1.97,192.14,191.99,3.05]
[1755436033335,1.97,192.12,191.99,3.05]
[1755436033530,1.97,192.1,191.99,3.05]
[1755436033730,5.93245359,192.09,191.99,3.05]
[1755436034040,1.97,192.09,191.99,3.05]
[1755436034739,3.96256044,192.08,191.99,3.05]
[1755436034930,1.97,192.09,191.99,3.05]
[1755436035131,3.95932247,192.08,191.99,3.05]
[1755436035334,1.97,192.09,191.99,3.05]
[1755436035537,1.97,192.15,191.99,3.05]
[1755436035741,1.97,192.13,191.99,3.05]
[1755436035937,1.97,192.11,191.99,3.05]
[1755436036139,1.97,192.09,191.99,3.05]
[1755436038543,1.97,192.11,191.99,3.05]
[1755436038737,3.96506188,192.1,191.99,3.05]
[1755436038934,1.97,192.11,191.99,3.05]
[1755436039137,3.96506188,192.1,191.99,3.05]
[1755436039341,1.97,192.11,191.99,3.05]
[1755436039541,5.93505252,192.1,191.99,3.05]
[1755436039742,1.97,192.1,191.99,3.05]
[1755436040451,1.97,192.08,191.99,3.05]
[1755436040648,1.97,192.06,191.99,3.05]
[1755436046174,1.97,192.12,191.99,3.05]
[1755436046362,1.97,192.1,191.99,3.05]
[1755436046556,5.93131315,192.09,191.99,3.05]
[1755436046755,1.97,192.09,191.99,3.05]
[1755436056271,5.77548179,192.19,191.99,3.05]
[1755436056477,1.97,192.17,191.99,3.05]
[1755436056669,1.97,192.15,191.99,3.05]
[1755436056975,1.97,192.16,191.99,3.05]
[1755436059372,1.97,192.16,192.0,62.0]
[1755436059674,1.97,192.16,192.01,2.82]
[1755436070171,1.97,192.16,192.03,2.89]
[1755436082989,1.97,192.16,192.05,2.89]
[1755436083189,1.97,192.16,192.07,2.89]
[1755436083784,1.97,192.16,192.05,127.38]
[1755436084096,1.97,192.16,192.06,2.89]
[1755436085786,1.95,192.14,192.05,127.38]
[1755436087394,103.38822255,192.22,192.05,127.38]
[1755436087395,1.95,192.12,192.05,127.38]
[1755436087596,1.95,192.12,191.99,2.89]
[1755436087784,1.95,192.12,191.93,403.12565633]
[1755436087785,1.95,192.12,192.0,127.38]
[1755436088092,3.95266107,192.11,191.99,127.38]
[1755436088293,1.95,192.09,191.99,127.38]
[1755436088691,1.95,192.09,191.99,130.27]
[1755436090392,3.95277606,192.08,191.99,127.38]
[1755436090596,5.90277606,192.07,191.99,127.38]
[1755436090791,1.95,192.05,191.93,349.6]
[1755436090991,1.95,192.05,191.94,2.89]
[1755436091299,1.95,192.03,191.94,2.89]
[1755436091597,1.95,192.03,191.93,479.87]
[1755436093198,1.95,192.03,191.93,476.98]
[1755436093801,1.95,192.03,191.93,479.87]
[1755436094298,1.95,192.03,191.94,2.89]
[1755436094599,1.95,192.03,191.93,479.87]
[1755436094799,1.95,192.03,191.94,2.89]
[1755436096903,1.95,192.14,191.94,2.89]
[1755436097103,1.95,192.12,191.94,2.89]
[1755436097292,1.95,192.1,191.94,2.89]
[1755436098101,3.93922007,192.09,191.94,2.89]
[1755436098301,1.97,192.08,191.94,2.89]
[1755436107000,431.59274076,192.22,191.94,2.89]
[1755436107207,1.97,192.2,191.94,2.89]
[1755436107412,1.97,192.18,191.94,2.89]
[1755436107706,1.97,192.16,191.94,2.89]
[1755436110013,1.97,192.16,191.95,62.0]
[1755436110212,1.97,192.16,191.96,2.83]
[1755436110413,1.97,192.16,191.98,2.83]
[1755436121531,1.97,192.16,191.93,350.50639162]
[1755436121532,1.97,192.16,192.0,2.83]
[1755436121732,1.97,192.14,192.02,2.83]
[1755436121923,1.97,192.14,192.03,130.23]
[1755436124021,1.97,192.14,192.04,2.83]
[1755436126234,3.95041676,192.13,192.04,2.83]
[1755436126437,1.97,192.11,192.04,2.83]
[1755436128833,3.93871421,192.1,192.04,2.83]
[1755436129041,1.97,192.11,192.03,130.23]
[1755436129239,1.97,192.09,191.94,2.83]
[1755436129435,1.97,192.09,191.96,2.83]
[1755436138442,3.94167425,192.08,191.97,127.42]
[1755436138635,1.97,192.15,191.98,2.83]
[1755436138834,1.97,192.13,191.98,2.83]
[1755436139030,1.97,192.11,191.98,2.83]
[1755436139241,1.97,192.09,191.98,2.83]
[1755436139440,1.97,192.07,191.98,2.83]
[1755436142039,1.97,192.14,191.98,2.83]
[1755436142245,1.97,192.12,191.98,2.83]
[1755436142447,1.97,192.1,191.98,2.83]
[1755436142950,1.97,192.08,191.98,2.83]
[1755436144752,1.97,192.06,191.98,2.83]
[1755436148050,1.97,192.14,191.98,2.83]
[1755436148246,1.97,192.12,191.98,2.83]
[1755436148442,3.94614787,192.11,191.98,2.83]
[1755436148651,1.97,192.09,191.98,2.83]
[1755436150062,1.97,192.16,191.98,2.83]
[1755436150251,1.97,192.14,191.98,2.83]
[1755436150452,1.97,192.12,191.98,2.83]
[1755436150651,1.97,192.1,191.98,2.83]
[1755436161170,3.95643349,192.09,191.98,2.83]
[1755436161470,1.97,192.1,191.98,2.83]
[1755436161768,1.96,192.08,191.98,2.83]
[1755436164472,3.95915847,192.07,191.98,2.83]
[1755436164672,1.96,192.06,191.98,2.83]
[1755436176584,1.96,192.13,191.98,2.83]
[1755436176790,5.77548179,192.14,191.98,2.83]
[1755436176791,5.2622191,192.12,191.98,2.83]
[1755436177089,1.96,192.14,191.98,2.83]
[1755436177290,1.96,192.12,191.98,2.83]
[1755436177493,1.96,192.1,192.0,2.83]
[1755436184995,5.77548179,192.2,192.0,2.83]
[1755436185201,1.96,192.12,192.0,2.83]
[1755436187896,1.95,192.14,192.0,2.83]
[1755436190696,3.87639725,192.13,192.0,2.83]
[1755436190890,1.95,192.11,192.01,2.9]
[1755436191100,1.95,192.09,192.01,2.9]
[1755436192200,3.87654445,192.08,192.01,2.9]
[1755436192397,1.95,192.07,192.01,2.9]
[1755436205706,1.95,192.14,192.01,2.9]
[1755436205911,1.95,192.12,192.01,2.9]
[1755436206109,8.61634606,192.11,192.01,2.9]
[1755436206309,1.95,192.09,192.01,2.9]
[1755436206504,3.87193445,192.08,192.01,2.9]
[1755436206710,1.95,192.07,192.01,2.9]
[1755436211820,1.95,192.14,192.01,2.9]
[1755436212018,1.95,192.12,192.01,2.9]
[1755436212220,1.95,192.1,192.01,2.9]
[1755436212520,10.56190744,192.09,192.01,2.9]
[1755436212713,3.870813,192.08,192.01,2.9]
[1755436212915,1.95,192.08,192.01,2.9]
[1755436218219,1.97,192.06,192.01,2.9]
[1755436218411,5.77548179,192.14,192.01,2.9]
[1755436218619,1.97,192.05,192.01,2.9]
[1755436219626,5.77548179,192.14,192.01,2.9]
[1755436219923,1.97,192.04,192.01,2.9]
[1755436220918,1.97,192.04,192.0,127.72]
[1755436220919,1.97,192.03,192.02,2.96]
[1755436222725,1.97,192.03,192.01,2.96]
[1755436223026,1.97,192.04,192.01,2.96]
[1755436225620,5.77548179,192.13,192.01,2.96]
[1755436225820,1.97,192.11,192.01,2.96]
[1755436226017,1.97,192.09,192.01,2.96]
[1755436226217,9.95127411,192.08,192.01,2.96]
[1755436226515,1.97,192.06,192.01,2.96]
[1755436226722,5.77548179,192.14,192.01,2.96]
[1755436226924,1.97,192.05,192.01,2.96]
[1755436230331,5.77548179,192.14,192.01,2.96]
[1755436230532,1.97,192.07,192.01,2.96]
[1755436233439,1.97,192.13,192.01,2.96]
[1755436233740,1.97,192.11,192.01,2.96]
[1755436233940,9.96343244,192.1,192.01,2.96]
[1755436234141,1.97,192.08,192.01,2.96]
[1755436234337,10.63222292,192.07,192.01,2.96]
[1755436234535,3.88919503,192.06,192.01,2.96]
[1755436234738,1.97,192.06,192.01,2.96]
[1755436238246,1.97,192.05,192.01,2.96]
[1755436239548,1.97,192.04,192.01,2.96]
[1755436240147,1.97,192.11,192.01,2.96]
[1755436240342,1.97,192.09,192.01,2.96]
[1755436240544,1.97,192.07,192.01,2.96]
[1755436240849,1.97,192.05,192.01,2.96]
[1755436241042,1.97,192.03,192.01,2.96]
[1755436242348,1.96,192.1,192.01,2.96]
[1755436242547,1.96,192.08,192.01,2.96]
[1755436242849,1.96,192.06,192.01,2.96]
[1755436243037,8.68268164,192.05,192.01,2.96]
[1755436243241,1.96,192.03,192.01,2.96]
[1755436243440,5.77548179,192.11,192.01,2.96]
[1755436243641,9.98413266,192.1,192.01,2.96]
[1755436243844,1.96,192.04,192.01,2.96]
[1755436245353,1.96,192.03,192.01,2.96]
[1755436245852,3.8984506,192.02,191.99,2.96]
[1755436246041,1.96,192.0,191.98,2.96]
[1755436246246,5.8584506,191.99,191.98,2.96]
[1755436246447,1.96,191.99,191.98,2.96]
[1755436247745,1.96,192.0,191.98,2.96]
[1755436251754,1.96,192.01,191.98,2.96]
[1755436252953,1.96,192.03,191.98,2.96]
[1755436253953,1.96,192.1,191.98,2.96]
[1755436254152,1.96,192.08,191.98,2.96]
[1755436254351,1.96,192.06,191.98,2.96]
[1755436254551,1.96,192.04,191.98,2.96]
[1755436254753,1.96,192.02,191.98,2.96]
[1755436256255,1.96,192.09,191.98,2.96]
[1755436256450,5.77548179,192.1,191.98,2.96]
[1755436256451,9.94492425,192.08,191.98,2.96]
[1755436256755,1.96,192.06,191.98,2.96]
[1755436257057,1.96,192.04,191.98,2.96]
[1755436257256,3.87993257,192.03,191.98,2.96]
[1755436257451,1.96,192.03,191.98,2.96]
[1755436258855,5.77548179,192.1,191.98,2.96]
[1755436259055,1.96,192.02,191.98,2.96]
[1755436259858,1.96,192.01,191.98,2.96]
[1755436260253,1.96,192.0,191.98,2.96]
[1755436260453,1.96,192.09,191.98,2.96]
[1755436260650,9.9459666,192.08,191.98,2.96]
[1755436260855,1.96,192.06,191.98,2.96]
[1755436261057,1.96,192.04,191.98,2.96]
[1755436261253,1.96,192.02,191.98,2.96]
[1755436261455,1.96,192.02,191.92,3.03]
[1755436267757,1.96,192.08,191.92,3.03]
[1755436268057,10.60621896,192.07,191.92,3.03]
[1755436268254,3.88110678,192.06,191.92,3.03]
[1755436271155,1.96,192.07,191.92,3.03]
[1755436272664,1.96,192.13,191.92,3.03]
[1755436272863,1.96,192.11,191.92,3.03]
[1755436273062,8.64681178,192.1,191.92,3.03]
[1755436273260,5.84128354,192.09,191.92,3.03]
[1755436273559,1.96,192.09,191.92,3.03]
[1755436275565,1.96,192.09,191.93,62.0]
[1755436275864,1.96,192.09,191.94,3.03]
[1755436293671,1.96,192.09,191.95,62.0]
[1755436293969,1.96,192.09,191.96,2.98]
[1755436300077,1.96,192.09,191.98,2.98]
[1755436301275,1.97,192.07,191.98,2.98]
[1755436318480,1.97,192.09,191.98,2.98]
[1755436320796,3.86753324,192.08,191.98,2.98]
[1755436321097,1.97,192.14,191.98,2.98]
[1755436321296,1.97,192.12,191.98,2.98]
[1755436321494,1.97,192.1,191.98,2.98]
[1755436321695,1.97,192.08,191.98,2.98]
[1755436328906,87.08068961,192.17,191.94,349.76]
[1755436328907,1.97,192.06,192.0,2.87]
[1755436339819,1.97,192.06,191.99,127.32]
[1755436340015,1.96,192.04,192.0,2.91]
[1755436340720,1.96,192.11,191.99,127.32]
[1755436340916,1.96,192.09,191.99,127.32]
[1755436341117,1.96,192.07,191.99,127.32]
[1755436341314,1.96,192.05,191.99,127.32]
[1755436341617,1.96,192.05,191.94,352.67]
[1755436341810,3.87682633,192.04,191.95,127.3]
[1755436342029,1.96,192.03,191.96,2.91]
[1755436342828,1.96,192.03,191.94,349.76]
[1755436343018,1.96,192.03,191.95,2.91]
[1755436343930,1.96,192.03,191.94,477.06]
[1755436344321,1.96,192.03,191.94,479.97]
[1755436344521,1.96,192.03,191.95,2.91]
[1755436344725,1.96,192.01,191.95,2.91]
[1755436345823,1.96,192.01,191.94,477.06]
[1755436346023,1.96,192.01,191.95,2.91]
[1755436346820,1.96,192.01,191.94,349.76]
[1755436347019,1.96,192.01,191.95,2.91]
[1755436347620,1.96,192.01,191.94,349.76]
[1755436347825,1.96,192.01,191.93,130.21]
[1755436348226,1.96,192.01,191.94,2.91]
[1755436352730,1.96,192.01,191.93,127.3]
[1755436353326,1.96,192.01,191.93,130.21]
[1755436354433,1.96,192.01,191.94,2.91]
[1755436358937,1.96,192.03,191.94,2.91]
[1755436359135,1.96,192.09,191.94,2.91]
[1755436359330,1.96,192.07,191.94,2.91]
[1755436359529,1.96,192.05,191.94,2.91]
[1755436362435,1.96,192.03,191.94,2.91]
[1755436367543,8.6287482,192.02,191.84,2.82]
[1755436367844,1.97,192.0,191.86,2.82]
[1755436370650,1.97,191.98,191.86,2.82]
[1755436383655,1.97,192.05,191.86,2.82]
[1755436383847,1.97,192.03,191.86,2.82]
[1755436384151,1.97,192.01,191.86,2.82]
[1755436384352,1.97,191.99,191.86,2.82]
[1755436384852,1.97,192.05,191.86,2.82]
[1755436385044,1.97,192.03,191.86,2.82]
[1755436385244,1.97,192.01,191.86,2.82]
[1755436385451,3.86945165,192.0,191.86,2.82]
[1755436385652,1.97,192.01,191.86,2.82]
[1755436385848,5.83944485,192.0,191.86,2.82]
[1755436386044,1.97,192.0,191.86,2.82]
[1755436387045,5.77548179,192.07,191.86,2.82]
[1755436387248,1.97,192.05,191.86,2.82]
[1755436387554,1.97,192.03,191.86,2.82]
[1755436387753,1.97,192.01,191.86,2.82]
[1755436388052,5.84134446,192.0,191.86,2.82]
[1755436388252,1.97,192.02,191.86,2.82]
[1755436388456,1.97,192.04,191.86,2.82]
[1755436388646,8.65350854,192.03,191.86,2.82]
[1755436388842,1.97,192.04,191.86,2.82]
[1755436389049,8.65350854,192.03,191.86,2.82]
[1755436389250,3.87294334,192.02,191.86,2.82]
[1755436390453,1.97,192.07,191.86,2.82]
[1755436390654,1.97,192.05,191.86,2.82]
[1755436390953,1.97,192.03,191.86,2.82]
[1755436403769,1.97,192.03,191.87,11.65365224]
[1755436403964,1.97,192.03,191.88,2.79]
[1755436404165,1.97,192.03,191.88,50.10215868]
[1755436404366,1.97,192.03,191.89,2.79]
[1755436406376,1.97,192.03,191.91,2.79]
[1755436412978,3.88153358,192.02,191.91,2.79]
[1755436413279,1.97,192.03,191.91,2.79]
[1755436413476,1.97,192.01,191.91,2.79]
[1755436422693,1.97,191.99,191.9,130.03]
[1755436423086,1.97,191.99,191.9,127.24]
[1755436423386,1.97,191.99,191.91,2.79]
[1755436426188,1.97,191.99,191.88,2.79]
[1755436426394,1.97,191.97,191.88,2.79]
[1755436429298,3.88330527,191.96,191.78,2.78]
[1755436429497,1.96,191.95,191.8,2.78]
[1755436429900,1.96,191.95,191.81,0.90697038]
[1755436430098,1.96,191.95,191.82,2.78]
[1755436434207,1.96,192.04,191.82,2.78]
[1755436434404,1.96,192.02,191.82,2.78]
[1755436434605,1.96,192.0,191.82,2.78]
[1755436434807,1.96,191.98,191.82,2.78]
[1755436437608,1.97,191.96,191.82,2.78]
[1755436437814,1.97,191.94,191.82,2.78]
[1755436442608,1.97,191.94,191.83,130.84]
[1755436442809,1.97,191.94,191.84,2.78]
[1755436443508,1.97,191.94,191.85,130.74]
[1755436443815,1.97,191.94,191.86,2.78]
[1755436446624,1.97,192.04,191.86,2.78]
[1755436446914,1.97,192.02,191.86,2.78]
[1755436447113,1.97,192.0,191.86,2.78]
[1755436447314,1.97,191.98,191.86,2.78]
[1755436452518,5.77548179,192.09,191.86,2.78]
[1755436452713,10.01717417,192.08,191.86,2.78]
[1755436452910,5.77548179,192.09,191.86,2.78]
[1755436452911,1.97,192.06,191.86,2.78]
[1755436453114,1.97,192.04,191.86,2.78]
[1755436453316,1.97,192.02,191.86,2.78]
[1755436459624,1.97,192.02,191.87,130.12]
[1755436459927,1.97,192.02,191.88,2.93]
[1755436460428,1.97,192.02,191.88,352.83]
[1755436460617,1.97,192.02,191.88,349.9]
[1755436460822,1.97,192.02,191.89,132.97]
[1755436461022,1.97,192.02,191.9,2.93]
[1755436472928,1.97,192.02,191.91,129.8]
[1755436473130,1.97,192.02,191.92,2.93]
[1755436474726,1.97,192.02,191.94,2.93]
[1755436474929,1.97,192.02,191.95,129.7]
[1755436475131,1.97,192.02,191.96,2.93]
[1755436478939,1.97,192.02,191.97,129.68]
[1755436479236,1.97,192.02,191.98,2.93]
[1755436482040,1.97,192.02,191.97,129.68]
[1755436482241,1.97,192.02,191.98,2.93]
[1755436482741,1.97,192.02,191.99,2.93]
[1755436483543,1.97,192.02,191.95,2.93]
[1755436483941,75.7089638,192.09,191.88,349.9]
[1755436483942,1.96,192.0,191.9,130.42]
[1755436484131,1.96,191.98,191.91,2.93]
[1755436486439,1.96,191.98,191.92,130.4]
[1755436486636,1.96,191.98,191.93,2.93]
[1755436487840,1.96,191.98,191.92,130.4]
[1755436488046,1.96,191.98,191.94,3.01]
[1755436488545,1.96,191.98,191.95,3.01]
[1755436490342,1.96,191.98,191.94,3.01]
[1755436490944,1.96,191.98,191.95,3.01]
[1755436491132,5.77548179,192.06,191.93,130.5]
[1755436491340,1.96,192.03,191.89,3.01]
[1755436491651,1.96,192.01,191.9,3.01]
[1755436491844,1.96,191.99,191.9,3.01]
[1755436492040,1.96,191.97,191.9,3.01]
[1755436492242,5.92570216,191.96,191.9,3.01]
[1755436492439,1.96,191.96,191.9,3.01]
[1755436494241,1.96,191.98,191.9,3.01]
[1755436495543,3.96330397,191.97,191.9,3.01]
[1755436495738,1.96,191.98,191.9,3.01]
[1755436496751,1.96,192.05,191.9,3.01]
[1755436496943,1.96,192.03,191.9,3.01]
[1755436497145,1.96,192.01,191.9,3.01]
[1755436497448,5.92365927,192.0,191.9,3.01]
[1755436497648,1.96,192.0,191.9,3.01]
[1755436500255,1.96,191.98,191.92,3.01]
[1755436500451,1.96,192.07,191.94,3.01]
[1755436500754,1.96,192.05,191.94,3.01]
[1755436500950,5.92385957,192.04,191.94,3.01]
[1755436501252,1.96,192.04,191.94,3.01]
[1755436501451,3.88971993,192.03,191.94,3.01]
[1755436501757,1.96,192.04,191.95,132.6]
[1755436501954,1.96,192.04,191.96,3.01]
[1755436502249,1.96,192.06,191.96,3.01]
[1755436502650,1.96,192.09,191.96,3.01]
[1755436502849,1.96,192.11,191.96,3.01]
[1755436503552,1.96,192.11,191.98,3.01]
[1755436503855,1.96,192.11,192.0,3.01]
[1755436505763,349.94,192.19,192.0,3.01]
[1755436505764,1.96,192.13,192.0,3.01]
[1755436506055,5.77548179,192.23,192.0,3.01]
[1755436506258,1.96,192.15,192.02,3.01]
[1755436506661,1.96,192.18,192.02,3.01]
[1755436515570,1.96,192.18,192.04,3.01]
[1755436528674,1.96,192.18,192.05,131.5]
[1755436528879,1.96,192.18,192.06,2.97]
[1755436530979,1.96,192.18,192.07,2.97]
[1755436539586,1.96,192.18,192.08,131.16]
[1755436539787,1.96,192.18,192.09,2.97]
[1755436540588,1.30055609,192.17,192.09,2.97]
[1755436540785,1.96,192.16,192.09,2.97]
[1755436540988,1.96,192.16,192.01,349.84]
[1755436541186,1.96,192.14,192.07,2.97]
[1755436542888,1.96,192.16,192.07,2.97]
[1755436543290,1.3005564,192.15,192.07,2.97]
[1755436543496,1.96,192.18,192.07,2.97]
[1755436543691,1.30043788,192.17,192.07,2.97]
[1755436543891,1.96,192.18,192.07,2.97]
[1755436544087,5.19559482,192.17,192.07,2.97]
[1755436544286,1.96,192.18,192.07,2.97]
[1755436544494,5.1963365,192.17,192.07,2.97]
[1755436544699,1.30045893,192.16,192.07,2.97]
[1755436544898,1.96,192.17,192.07,2.97]
[1755436545097,1.30045893,192.16,192.07,2.97]
[1755436545299,1.96,192.17,192.07,2.97]
[1755436545596,1.30045893,192.16,192.07,2.97]
[1755436545798,1.96,192.17,192.07,2.97]
[1755436546000,1.30045893,192.16,192.07,2.97]
[1755436546198,1.96,192.17,192.07,2.97]
[1755436546398,1.30045893,192.16,192.07,2.97]
[1755436546702,1.96,192.17,192.07,2.97]
[1755436546898,3.90033933,192.16,192.07,2.97]
[1755436547094,1.96,192.17,192.07,2.97]
[1755436547296,5.20079826,192.16,192.07,2.97]
[1755436547602,1.96,192.17,192.07,2.97]
[1755436547798,5.2039603,192.16,192.07,2.97]
[1755436547998,1.96,192.17,192.07,2.97]
[1755436548203,3.90433853,192.16,192.07,2.97]
[1755436548405,1.96,192.17,192.07,2.97]
[1755436548602,3.90518186,192.16,192.07,2.97]
[1755436548800,1.96,192.17,192.07,2.97]
[1755436549002,3.90518186,192.16,192.07,2.97]
[1755436549299,1.96,192.17,192.07,2.97]
[1755436549501,3.90592208,192.16,192.07,2.97]
[1755436549802,1.96,192.17,192.07,2.97]
[1755436550005,3.90592208,192.16,192.07,2.97]
[1755436550197,1.96,192.16,192.07,2.97]
[1755436551207,1.96,192.23,192.07,2.97]
[1755436551503,1.96,192.21,192.07,2.97]
[1755436551699,7.16742141,192.2,192.07,2.97]
[1755436551900,5.20742141,192.19,192.07,2.97]
[1755436552101,5.77548179,192.27,192.07,2.97]
[1755436552405,1.96,192.25,192.07,2.97]
[1755436552605,1.96,192.23,192.07,2.97]
[1755436552904,1.96,192.24,192.07,2.97]
[1755436553606,1.96,192.24,192.07,11.65365224]
[1755436553801,1.96,192.31,192.08,2.93]
[1755436554000,1.96,192.29,192.08,2.93]
[1755436554203,1.96,192.27,192.09,2.93]
[1755436556001,1.96,192.34,192.09,2.93]
[1755436556311,1.96,192.32,192.1,2.93]
[1755436556504,5.12670929,192.31,192.1,2.93]
[1755436556806,1.96,192.29,192.1,2.93]
[1755436561712,3.81710138,192.28,192.11,130.28]
[1755436562008,3.81710138,192.28,192.01,666.84]
[1755436562009,1.96,192.29,192.13,2.93]
[1755436562209,1.96,192.27,192.13,2.93]